Cogmind - Beta 15 @@@ ROGUE MODE // 2025.09.03 @ 13:55:46 Player: honbee Result: Destroyed by S-10 Pest with Light Assault Rifle Performance ------------- Evolutions (0) 0 Regions Visited (2) 400 Robots Destroyed (14) 70 Value Destroyed (328) 328 Prototype IDs (1) 20 Alien Tech Used (0) 0 Bonus (0) 0 TOTAL SCORE: 818 Bonus ------- None Cogmind --------- Core Integrity 0/250 Matter 300/300 Energy 280/280 System Corruption 0% Temperature Warm (116) Movement Rolling (95) Ox1 Location -10/Mines Parts ------- > --- POWER (1) -------- Cooled Ion Engine > --- PROPULSION (2) --- Wheel > --- UTILITY (2) ------ Small Storage Unit Improved Terrain Scanner > --- WEAPON (2) ------- Particle Gun > --- INVENTORY (8) ---- Cooled Ion Engine Cooled Ion Engine Cooled Ion Engine Aluminum Leg Aluminum Leg Aluminum Leg Experimental Sensor Array Small Laser Peak State ------------ > --- POWER ------------ Cooled Ion Engine > --- PROPULSION ------- Wheel Wheel > --- UTILITY ---------- Small Storage Unit Improved Terrain Scanner > --- WEAPON ----------- Beam Rifle Particle Gun > --- INVENTORY -------- Cooled Ion Engine Cooled Ion Engine Cooled Ion Engine Aluminum Leg Wheel Wheel Experimental Sensor Array Small Laser [Rating: 15] Favorites ----------- Power Cooled Ion Engine Engine Cooled Ion Engine Propulsion Aluminum Leg Leg Aluminum Leg Wheel Wheel Utility Small Storage Unit Device Improved Terrain Scanner Storage Small Storage Unit Processor Targeting Computer Weapon Beam Rifle Energy Gun Beam Rifle Ballistic Gun Light Assault Rifle Build | -11 -10 -10 ------- Run | Yrd Mat Min Slots Evolved . | . . . Power . | . . . Propulsion . | . . . Utility . | . . . Weapon . | . . . Parts Attached 21 | 6 4 11 Power 3 | 1 1 1 Engine 3 | 1 1 1 Core . | . . . Reactor . | . . . Propulsion 7 | 2 . 5 Treads . | . . . Leg 2 | 2 . . Wheel 5 | . . 5 Hover . | . . . Flight . | . . . Utility 3 | 1 1 1 Device 1 | . . 1 Storage 1 | 1 . . Processor 1 | . 1 . Hackware . | . . . Protection . | . . . Artifact . | . . . Weapon 8 | 2 2 4 Energy Gun 7 | 1 2 4 Energy Cannon . | . . . Ballistic Gun 1 | 1 . . Ballistic Cannon . | . . . Launcher . | . . . Special Weapon . | . . . Impact Weapon . | . . . Slashing Weapon . | . . . Piercing Weapon . | . . . Special Melee Weapon . | . . . Unidentified Prototypes 1 | . 1 . Parts Lost 8 | . . 8 Power . | . . . Propulsion 4 | . . 4 Utility . | . . . Weapon 4 | . . 4 Highest Loss Streak 4 | . . 4 To Critical Strikes . | . . . Average Backups 5 | 1 6 5 Power 2 | . 2 3 Propulsion 1 | . 2 1 Utility . | . . . Weapon . | . 1 . Tool/Special . | . . . Unused Backups 8 | . 1 7 Power 3 | . 1 2 Propulsion 3 | . . 3 Utility 1 | . . 1 Weapon 1 | . . 1 Tool/Special . | . . . Average Slot Usage (%) 94 | . 95 94 Engine 14 | . 14 14 Leg 11 | . 28 6 Wheel 13 | . . 17 Device 3 | . . 4 Storage 14 | . 14 14 Processor 9 | . 9 9 Energy Gun 26 | . 26 26 Peak Build Rating 15 | 6 12 15 Average Rating 11 | 4 11 11 On Entrance 6 | . 6 12 Naked Turns . | . . . Heaviest Build 20 | 13 19 20 Greatest Support 26 | 20 20 26 Greatest Overweight (x) 1 | . . 1 Average Overweight (x) . | . . . Largest Inventory Capacity 8 | 8 8 8 Average Capacity 7 | 7 8 8 Most Carried 8 | 3 7 8 Average Carried 5 | 1 6 5 Final Capacity 8 | 8 8 8 Final Carried 8 | 3 7 8 Class Distribution -------------------- 84% | Mutant 15% | Scavenger-Mutant Dominant Class ---------------- Mutant | -10/Materials Mutant | -10/Mines Resources | -11 -10 -10 ----------- Run | Yrd Mat Min Matter Collected 381 | 201 . 180 Remotely . | . . . Salvage Created 465 | . . 465 Parts 28 | . . 28 Haulers Intercepted . | . . . Recyclers Shooed . | . . . Parts Field Recycled . | . . . Retrieved Matter . | . . . Parts Self-Destructed . | . . . Prevented . | . . . Kills | -11 -10 -10 ------- Run | Yrd Mat Min Combat Hostiles Destroyed 15 | . . 15 Guns 15 | . . 15 Classes Destroyed 4 | . . 4 Tunneler 2 | . . 2 Swarmer 5 | . . 5 Grunt 7 | . . 7 Assembled 3 | . . 3 Best Kill Streak 4 | . . 4 Combat Bots Only 2 | . . 2 Max Kills in Single Turn 1 | . . 1 Gunslinging . | . . . Exploded . | . . . Melee . | . . . Uniques/NPCs Destroyed . | . . . Combat | -11 -10 -10 -------- Run | Yrd Mat Min Hostile Shots Fired 147 | . . 147 Missed 42 | . . 42 Hits 105 | . . 105 Melee 1 | . . 1 Projectile 104 | . . 104 Critical Strikes 1 | . . 1 Damage Taken 970 | . . 970 Core 250 | . . 250 Absorbed by Shields . | . . . Core Remaining (%) 100 | 100 . . Volleys Fired 94 | . 1 93 Largest 2 | . 2 2 Hottest 112 | . 112 112 Shots Fired 117 | . 2 115 Gun 117 | . 2 115 Cannon . | . . . Launcher . | . . . Special . | . . . Kinetic . | . . . Thermal 117 | . 2 115 Explosive . | . . . Electromagnetic . | . . . Robot Hit Streak 8 | . . 8 Robot Miss Streak 5 | . . 5 Penetration Max . | . . . Secondary Targets 1 | . . 1 Max Gunslinging Chain 1 | . . 1 Shots Hit Robots 61 | . . 61 Core Hits 28 | . . 28 Critical Kills . | . . . Critical Parts Destroyed . | . . . Critical Strikes 4 | . . 4 Burn 4 | . . 4 Melee Attacks . | . . . Impact . | . . . Slashing . | . . . Piercing . | . . . Sneak Attacks . | . . . Combat Hostiles . | . . . Follow-up Attacks . | . . . Damage Inflicted 948 | . . 948 Guns 928 | . . 928 Cannons . | . . . Explosions . | . . . Melee . | . . . Ramming 20 | . . 20 Kinetic . | . . . Thermal 928 | . . 928 Explosive . | . . . Electromagnetic . | . . . Impact . | . . . Slashing . | . . . Piercing . | . . . Highest Corruption . | . . . Average Corruption . | . . . Corruption Purged . | . . . Corruption Blocked . | . . . Overload Shots . | . . . Overflow Damage . | . . . Projectiles . | . . . Explosions . | . . . Melee . | . . . Knockbacks . | . . . Impact . | . . . Kinetic . | . . . Secondary . | . . . Self-Inflicted Damage 9 | . . 9 Shots . | . . . Rammed 3 | . . 3 Targets Rammed 3 | . . 3 Kicked . | . . . Crushed . | . . . Highest Temperature 669 | . 45 669 Average Temperature 181 | . 23 183 Received Heat Transfer 114 | . . 114 Effects 22 | . . 22 Shutdowns 5 | . . 5 Energy Bleed 6 | . . 6 Interference 2 | . . 2 Short Circuit 2 | . . 2 Damage (minor) 6 | . . 6 Damage (major) 1 | . . 1 Siege Activations . | . . . Martial Activations . | . . . Shielding Activations . | . . . Robots Disrupted . | . . . Combat Hostiles . | . . . Robots Corrupted . | . . . Combat Hostiles . | . . . Parts Fried . | . . . Impact Corruptions . | . . . Robots Melted . | . . . Combat Hostiles . | . . . Parts Melted 3 | . . 3 Heat Transferred 2616 | . . 2616 Parts Sabotaged . | . . . Parts Stolen . | . . . Parts Stripped . | . . . Power Chain Reactions . | . . . Alert | -11 -10 -10 ------- Run | Yrd Mat Min Maximum Alert Level . | . . . Low Security (%) 100 | 100 100 100 Level 1 . | . . . Level 2 . | . . . Level 3 . | . . . Level 4 . | . . . Level 5 . | . . . High Security . | . . . Max Security . | . . . Peak Influence 75 | . . 75 Initial . | . . . Average 19 | . . 26 Influence Increases 335 | . . 335 Destroy 0b10 Robot/C 240 | . . 240 Destroy 0b10 Robot/NC 10 | . . 10 Destroy Leader 40 | . . 40 Lose Combat Pursuer 45 | . . 45 Influence Decreases 271 | . . 271 Time Decay 192 | . . 192 Lost Part 79 | . . 79 Squads Dispatched . | . . . Investigation . | . . . Extermination . | . . . Reinforcement . | . . . Assault . | . . . Garrison . | . . . Intercept . | . . . Searches Triggered . | . . . Construction Impeded . | . . . Haulers Reinforced . | . . . Active Scanning Responses . | . . . Cargo Convoy Interrupts . | . . . Stealth | -11 -10 -10 --------- Run | Yrd Mat Min Distress Signals 1 | . . 1 Communications Jammed . | . . . Distress Signals . | . . . Times Spotted 20 | . 1 19 Peak Tracking Total 4 | . 1 4 Tactical Retreats 2 | . . 2 Traps | -11 -10 -10 ------- Run | Yrd Mat Min Traps Triggered . | . . . Indirectly . | . . . Trap Hack Attempts . | . . . Triggered . | . . . Disarmed . | . . . Reprogrammed . | . . . Reused . | . . . Traps Extracted . | . . . Installed . | . . . Triggered . | . . . Machines | -11 -10 -10 ---------- Run | Yrd Mat Min Machines Disabled . | . . . Max in Single Turn . | . . . Machines Repaired . | . . . Machines Dismantled . | . . . Machines Sabotaged . | . . . Overloaded Fab Kills . | . . . Hacking | -11 -10 -10 --------- Run | Yrd Mat Min Machines Accessed . | . . . Terminals . | . . . Fabricators . | . . . Repair Stations . | . . . Recycling Units . | . . . Scanalyzers . | . . . Garrison Access . | . . . Total Hacks . | . . . Successful . | . . . Failed . | . . . Catastrophic . | . . . Database Lockouts . | . . . Manual . | . . . Terminals . | . . . Fabricators . | . . . Repair Stations . | . . . Recycling Units . | . . . Scanalyzers . | . . . Garrison Access . | . . . Terminal Hacks . | . . . Fabricator Hacks . | . . . Repair Station Hacks . | . . . Recycling Unit Hacks . | . . . Scanalyzer . | . . . Garrison Access Hacks . | . . . Unauthorized Hacks . | . . . Terminals . | . . . Fabricators . | . . . Repair Stations . | . . . Recycling Units . | . . . Scanalyzers . | . . . Garrison Access . | . . . Data Cores Recovered . | . . . Used . | . . . Hacking Detections . | . . . Full Trace Events . | . . . Feedback Events . | . . . Feedback Blocked . | . . . Robot Schematics Acquired . | . . . Robots Built . | . . . Authchips . | . . . Time . | . . . Total Robot Build Rating . | . . . Part Schematics Acquired . | . . . Parts Built . | . . . Authchips . | . . . Time . | . . . Total Part Build Rating . | . . . Parts Repaired . | . . . Time . | . . . Parts Recycled . | . . . Recycled Matter . | . . . Retrieved Matter . | . . . Retrieved Components . | . . . Parts Scanalyzed . | . . . Part Schematics Acquired . | . . . Parts Damaged . | . . . Bothacking | -11 -10 -10 ------------ Run | Yrd Mat Min Used RIF Installer . | . . . Robots Hacked . | . . . Non-combat . | . . . Combat . | . . . Robot Hacks Applied . | . . . Relay Couplers Released . | . . . Fabnet Peak Effective % . | . . . Robots Rewired . | . . . Allies Hacked . | . . . Hacks Repelled . | . . . Allies | -11 -10 -10 -------- Run | Yrd Mat Min Total Allies . | . . . Largest Group . | . . . Highest-Rated Group . | . . . Highest-Rated Ally . | . . . Total Orders . | . . . Ally Attacks . | . . . Total Damage . | . . . Kills . | . . . Allies Corrupted . | . . . Allies Melted . | . . . Intel | -11 -10 -10 ------- Run | Yrd Mat Min Active Infowar (turns) 193 | . . 193 Terrain 193 | . . 193 Robot Analysis Total . | . . . Derelict Logs Recovered 1 | . . 1 Drone Launches . | . . . Drone Recoveries . | . . . Exploration | -11 -10 -10 ------------- Run | Yrd Mat Min Turns Passed 832 | 77 157 598 Spaces Moved 452 | 59 119 274 Core 7 | 7 . . Treads . | . . . Legs 203 | 52 119 32 Wheels 242 | . . 242 Hover . | . . . Flight . | . . . Fastest Speed 50 | 50 120 80 Average Speed 100 | 111 120 89 Slowest Speed 190 | 120 120 190 Overloaded Moves . | . . . Propulsion Burnouts . | . . . Robots Hopped . | . . . Potential Cave-ins . | . . . Cave-ins Triggered . | . . . Exploration Rate (%) 16 | 4 13 31 Regions Visited 2 Branch Regions 1 Pre-discovered Areas . | . . . Known Exits Taken . | . . . Unknown Exits Taken 2 | 1 1 . Scrap Searched . | . . . Spaces Dug . | . . . Terrain Destroyed . | . . . Melee . | . . . Projectile . | . . . AOE . | . . . Terrain Rammed . | . . . Walls Destroyed . | . . . Machines Disabled . | . . . Actions | -11 -10 -10 --------- Run | Yrd Mat Min Total 706 | 67 130 509 Wait 120 | . . 120 Move 450 | 58 118 274 Hop . | . . . Pick Up 13 | 3 5 5 Fast Attach 9 | 6 1 2 Attach 4 | . . 4 Detach . | . . . Swap 8 | . 3 5 Drop 5 | . 2 3 Fire 94 | . 1 93 Melee . | . . . Ram 3 | . . 3 Kick . | . . . Crush . | . . . Escape Stasis . | . . . Rewire . | . . . Trap . | . . . Miscellaneous . | . . . Route ------- -11/Scrapyard -10/Materials -10/Mines History --------- Turn | Location | Event 4 | -11/Scrapyard | Discovered new exit (range 15) 78 | -11/Scrapyard | Entered Materials 125 | -10/Materials | Discovered new exit (range 15) 235 | -10/Materials | Entered Mines 307 | -10/Mines | Build established: Mutant 404 | -10/Mines | Lost 4 parts (2n2w) 482 | -10/Mines | Excavation squad dispatched 482 | -10/Mines | A large section of the Mines collapsed 490 | -10/Mines | Core integrity fell below 50% 681 | -10/Mines | Core integrity fell below 20% 701 | -10/Mines | Found a damaged Exp. Sensor Array with a note attached 702 | -10/Mines | Found Prototype Device 709 | -10/Mines | Learned Materials emergency access door positions 732 | -10/Mines | Excavation squad dispatched 833 | -10/Mines | Destroyed by S-10 Pest with Light Assault Rifle Last Messages --------------- Data stored: Materials emergency access points. Slammed into T-07 Excavator. T-07 Excavator sends out distress signal. G-34 Mercenary destroyed. ALERT: Derelict activity in mines confirmed. Dispatching additional escorted excavation squad. Acquired Sml. Laser. Acquired Aluminum Leg. K-01 Serf collects debris. Imp. Heat Sink melted. G-47 Trooper destroyed. G-34 Mercenary destroyed. Dropped Sml. Laser. Acquired 10 matter. Dropped Wheel. Acquired Aluminum Leg. K-01 Serf collects debris. Beam Rifle destroyed. Wheel destroyed. S-10 Pest destroyed. Map ----- +----------------------------------------------------+ | ## #???##??## #?????????? | | ### #????#### #?#???????? | | ####?# #??### ##?????????? | | ???#?# #?### ###??????#??? | | ?????# ### ##??????????? | | ?????# ## ##??????????? | | ?????# ### ##?#???????? | | ##???# #?##### #?????????? | | ??#### #?????## #?????????? | | ??# " #???#??## ##?#???????? | | ??# %###?????#?# ##??#???????? | | ### #???#####?#%#???????????? | | % #??## ### #????????#??? | | "#??# #???#???#???? | | ##?# = ####???????#??? | | !*" =### %!#?????????????? | | "##! ### ##????????#?#?? | | ####* " #?## ##??#???##??## | | "#??## #### ##???#?#????# | | ##??##### #???????????? | | #?????## ### ##????????##?? | | ###?????## #?####????????????? | | ????#??#?# ##????????????????? | | ?#???????# ################??? | | ????? ???# *% %[= s=#?#? | | ??#??????#########=######@#??? | | ???????#?????????# #?####[##?? | | ???#?????????????# ### #?? | | ?????????????????# ## #?? | | ??????????#????### # ##?? | | ???????#??????## ###?? | | ??????????????# ##???? | | ????????????# #####???? | | ???#?????# ##?#?????? | | ???????## ######?????????? | | ???????? ???????????????#? | | ???????# ????????????#????? | | ????????# ???????????????????# | | ????????#????????##??????????# | | ??????????# ?????????????????? | | ???????????#?????????????????? | | ?????????????????????????????? | | ?????????????????????????????? | | ????????????????? ???????????? | | ???????????????????????????#?? | | ?????????????????????????????? | | ?????????????????????????????? | | ?????????????????????????????? | | ?????????????????????????????? | | ?????????????????????????????? | +----------------------------------------------------+ Best States ------------- Heat Dissipation 25 Energy Generation 14 Energy Capacity 280 Matter Stores 300 Matter Capacity 300 Sight Range 16 Terrain Scan Range 16 Terrain Scan Density 10 Evasion (%) 55 Targeting Accuracy 5 Item Schematics ----------------- None Robot Schematics ------------------ None Fabricated ------------ Nothing Repaired ---------- Nothing Alien Tech Used ----------------- None Achievements -------------- None Challenges ------------ None Game ------ Seed WeaponsOvertunedMagmablaster Manual? 0 Play Time 00:11:08 Cumulative 38.3 hours Start 2025.09.03 @ 13:49:10 End 2025.09.03 @ 13:55:46 Sessions 1 Manual Loads 0 Difficulty Rogue Special Mode None Game No. 33 Rogue 33 Adventurer 0 Explorer 0 Win Type - Total 0 Types 0/0/0/0/0/0/0/0/0/0 Lore% 22 Gallery% 29 Achievement% 27 Wizard Run 0 Options --------- Layout 0 ASCII 0 Keyboard 0 Movement Mouse Keybinds 0 Fullscreen 1 Font 24/X11 Map View 38x25 Zoom Use 91% Tactical HUD 0 Map Filters NONE Filters NONE Steam 1 RUN: b3e14cfd-107c-435d-8227-13b0a61cfef5